[Event "*** Titled Tuesday Blitz"]
[Site "Chess.com"]
[Date "2021.03.30"]
[Round "6"]
[White "Lenyas66"]
[Black "ChelsieMonica"]
[Result "0-1"]
[WhiteElo "2514"]
[BlackElo "2401"]
[TimeControl "180+1"]
[EndTime "11:03:17 PDT"]
[Termination "ChelsieMonica won by checkmate"]

1. e4 {[%clk 0:03:00.9]} 1... e5 {[%clk 0:02:51.7]} 2. Nf3 {[%clk 0:03:00.9]}
2... Nc6 {[%clk 0:02:51.1]} 3. Bb5 {[%clk 0:03:00.9]} 3... a6 {[%clk 0:02:51]}
4. Ba4 {[%clk 0:03:01.1]} 4... Nf6 {[%clk 0:02:50.3]} 5. O-O {[%clk 0:03:00.9]}
5... Be7 {[%clk 0:02:49.4]} 6. Bxc6 {[%clk 0:02:59.2]} 6... dxc6 {[%clk
0:02:50.3]} 7. d3 {[%clk 0:02:59.5]} 7... Nd7 {[%clk 0:02:48.9]} 8. Be3 {[%clk
0:02:59.5]} 8... O-O {[%clk 0:02:48.8]} 9. Nbd2 {[%clk 0:02:59.5]} 9... f6
{[%clk 0:02:43.9]} 10. c3 {[%clk 0:02:59]} 10... Nc5 {[%clk 0:02:41.4]} 11. d4
{[%clk 0:02:58.3]} 11... exd4 {[%clk 0:02:41.5]} 12. cxd4 {[%clk 0:02:58.6]}
12... Ne6 {[%clk 0:02:42.1]} 13. Qb3 {[%clk 0:02:58.7]} 13... Kh8 {[%clk
0:02:41.1]} 14. Rfd1 {[%clk 0:02:55.9]} 14... Ng5 {[%clk 0:02:31]} 15. Nxg5
{[%clk 0:02:54.7]} 15... fxg5 {[%clk 0:02:30.7]} 16. Rac1 {[%clk 0:02:24.6]}
16... Qe8 {[%clk 0:02:30.3]} 17. Nc4 {[%clk 0:02:22.4]} 17... Qg6 {[%clk
0:02:18.8]} 18. Ne5 {[%clk 0:02:13.9]} 18... Qh5 {[%clk 0:02:05.4]} 19. d5
{[%clk 0:01:51.1]} 19... Bd6 {[%clk 0:01:58.4]} 20. Bd4 {[%clk 0:01:46.5]} 20...
c5 {[%clk 0:01:56]} 21. Bc3 {[%clk 0:01:43.5]} 21... g4 {[%clk 0:01:46.3]} 22.
f4 {[%clk 0:01:33.8]} 22... gxf3 {[%clk 0:01:29.3]} 23. Nxf3 {[%clk 0:01:30.1]}
23... Rxf3 {[%clk 0:01:28.4]} 24. gxf3 {[%clk 0:01:30.3]} 24... Qxh2+ {[%clk
0:01:27.9]} 25. Kf1 {[%clk 0:01:30.2]} 25... Bh3+ {[%clk 0:01:28.5]} 26. Ke1
{[%clk 0:01:29.2]} 26... Bg3# {[%clk 0:01:29.2]} 0-1

[Event "*** Titled Tuesday Blitz"]
[Site "Chess.com"]
[Date "2021.03.30"]
[Round "6"]
[White "Rakesh"]
[Black "albi1999"]
[Result "1/2-1/2"]
[WhiteElo "2494"]
[BlackElo "2609"]
[TimeControl "180+1"]
[EndTime "11:03:44 PDT"]
[Termination "Game drawn by agreement"]

1. g3 {[%clk 0:03:00.9]} 1... d5 {[%clk 0:02:59.6]} 2. Bg2 {[%clk 0:03:01.8]}
2... e5 {[%clk 0:02:57.8]} 3. b3 {[%clk 0:03:02.3]} 3... c6 {[%clk 0:02:54.6]}
4. Bb2 {[%clk 0:03:02.7]} 4... Bd6 {[%clk 0:02:54.9]} 5. c4 {[%clk 0:03:03]}
5... Nf6 {[%clk 0:02:54]} 6. cxd5 {[%clk 0:03:03]} 6... cxd5 {[%clk 0:02:54.9]}
7. d4 {[%clk 0:03:03]} 7... e4 {[%clk 0:02:51.2]} 8. Nc3 {[%clk 0:03:01.8]} 8...
O-O {[%clk 0:02:48.1]} 9. Nh3 {[%clk 0:03:02.3]} 9... Nc6 {[%clk 0:02:42.5]} 10.
O-O {[%clk 0:03:01.3]} 10... a6 {[%clk 0:02:31]} 11. Nf4 {[%clk 0:02:58]} 11...
Ne7 {[%clk 0:02:27]} 12. Rc1 {[%clk 0:02:56.9]} 12... g5 {[%clk 0:02:18.5]} 13.
Nh3 {[%clk 0:02:53.6]} 13... h6 {[%clk 0:02:18.9]} 14. f3 {[%clk 0:02:51.8]}
14... exf3 {[%clk 0:02:13]} 15. exf3 {[%clk 0:02:52.7]} 15... Nf5 {[%clk
0:02:11.9]} 16. Qd2 {[%clk 0:02:50.1]} 16... Re8 {[%clk 0:02:09.1]} 17. Rfe1
{[%clk 0:02:37.3]} 17... Bd7 {[%clk 0:02:07.7]} 18. Nf2 {[%clk 0:02:36.9]} 18...
Qb6 {[%clk 0:02:02.5]} 19. Ng4 {[%clk 0:02:24.1]} 19... Nxg4 {[%clk 0:01:52.5]}
20. fxg4 {[%clk 0:02:25]} 20... Qxd4+ {[%clk 0:01:51.4]} 21. Qxd4 {[%clk
0:02:24.6]} 21... Nxd4 {[%clk 0:01:52.3]} 22. Nxd5 {[%clk 0:02:25.5]} 22... Ne2+
{[%clk 0:01:39.1]} 23. Kf1 {[%clk 0:02:22.8]} 23... Bb5 {[%clk 0:01:34.3]} 24.
Nf6+ {[%clk 0:02:20]} 24... Kf8 {[%clk 0:01:31]} 25. Nh7+ {[%clk 0:02:03.1]}
25... Kg8 {[%clk 0:01:29.6]} 26. Nf6+ {[%clk 0:02:01.8]} 26... Kf8 {[%clk
0:01:29.8]} 27. Kf2 {[%clk 0:01:32.2]} 27... Nxc1 {[%clk 0:01:20.6]} 28. Nh7+
{[%clk 0:01:24.1]} 1/2-1/2

[Event "*** Titled Tuesday Blitz"]
[Site "Chess.com"]
[Date "2021.03.30"]
[Round "6"]
[White "Chesswizard_2007"]
[Black "oogee"]
[Result "1-0"]
[WhiteElo "2685"]
[BlackElo "2373"]
[TimeControl "180+1"]
[EndTime "11:03:53 PDT"]
[Termination "Chesswizard_2007 won by resignation"]

1. a3 {[%clk 0:03:00.9]} 1... e5 {[%clk 0:02:55.6]} 2. e4 {[%clk 0:02:59.1]}
2... Nf6 {[%clk 0:02:52.9]} 3. Nc3 {[%clk 0:02:58.2]} 3... Bc5 {[%clk
0:02:52.1]} 4. Nf3 {[%clk 0:02:55.9]} 4... O-O {[%clk 0:02:42.7]} 5. Nxe5 {[%clk
0:02:41.3]} 5... Re8 {[%clk 0:02:39.1]} 6. d4 {[%clk 0:02:39.6]} 6... Bb6 {[%clk
0:02:17.2]} 7. Bc4 {[%clk 0:02:09.1]} 7... d5 {[%clk 0:02:10.7]} 8. Nxd5 {[%clk
0:02:01.9]} 8... Be6 {[%clk 0:02:08.9]} 9. Nxb6 {[%clk 0:01:52.3]} 9... axb6
{[%clk 0:02:02.7]} 10. Bxe6 {[%clk 0:01:52.2]} 10... Rxe6 {[%clk 0:02:01]} 11.
Bg5 {[%clk 0:01:47.6]} 11... h6 {[%clk 0:01:49.8]} 12. Bxf6 {[%clk 0:01:46.9]}
12... gxf6 {[%clk 0:01:47.3]} 13. Qg4+ {[%clk 0:01:46.1]} 13... Kf8 {[%clk
0:01:44.8]} 14. Nf3 {[%clk 0:01:46]} 14... Qe8 {[%clk 0:01:33.7]} 15. O-O {[%clk
0:01:40.2]} 15... Rxe4 {[%clk 0:01:32.3]} 16. Qf5 {[%clk 0:01:31.3]} 16... Kg7
{[%clk 0:01:23]} 17. Rfe1 {[%clk 0:01:29.2]} 17... Rxe1+ {[%clk 0:01:17.6]} 18.
Rxe1 {[%clk 0:01:30.1]} 18... Qc6 {[%clk 0:01:12.5]} 19. Qg4+ {[%clk 0:01:19.4]}
19... Kh7 {[%clk 0:01:04.5]} 20. Nh4 {[%clk 0:01:15.1]} 20... Nd7 {[%clk
0:01:02.1]} 21. Nf5 {[%clk 0:01:12.4]} 21... Rg8 {[%clk 0:00:55.4]} 22. Qxg8+
{[%clk 0:01:12.6]} 1-0

[Event "*** Titled Tuesday Blitz"]
[Site "Chess.com"]
[Date "2021.03.30"]
[Round "6"]
[White "maximnovik"]
[Black "Tactictic"]
[Result "1/2-1/2"]
[WhiteElo "2558"]
[BlackElo "2399"]
[TimeControl "180+1"]
[EndTime "11:04:00 PDT"]
[Termination "Game drawn by repetition"]

1. Nf3 {[%clk 0:02:29.7]} 1... d5 {[%clk 0:02:58.9]} 2. g3 {[%clk 0:02:30.1]}
2... Nf6 {[%clk 0:02:58.8]} 3. Bg2 {[%clk 0:02:30.6]} 3... e6 {[%clk 0:02:55.4]}
4. O-O {[%clk 0:02:29.8]} 4... Be7 {[%clk 0:02:55.6]} 5. d3 {[%clk 0:02:30.2]}
5... O-O {[%clk 0:02:55.5]} 6. Nbd2 {[%clk 0:02:30.7]} 6... c5 {[%clk
0:02:54.9]} 7. e4 {[%clk 0:02:31.1]} 7... Nc6 {[%clk 0:02:55.4]} 8. Re1 {[%clk
0:02:31.5]} 8... b5 {[%clk 0:02:50.3]} 9. e5 {[%clk 0:02:31.4]} 9... Nd7 {[%clk
0:02:49.8]} 10. Nf1 {[%clk 0:02:31.9]} 10... Bb7 {[%clk 0:02:47.2]} 11. h4
{[%clk 0:02:31.9]} 11... Qc7 {[%clk 0:02:47.4]} 12. Bf4 {[%clk 0:02:31.1]} 12...
Rfc8 {[%clk 0:02:46.5]} 13. N1h2 {[%clk 0:02:30.9]} 13... Qd8 {[%clk 0:02:46]}
14. Ng5 {[%clk 0:02:29.9]} 14... h6 {[%clk 0:02:43.1]} 15. Nh3 {[%clk
0:02:27.6]} 15... Kh8 {[%clk 0:02:43.1]} 16. Qh5 {[%clk 0:02:25.8]} 16... Qg8
{[%clk 0:02:42.6]} 17. Ng4 {[%clk 0:02:19.9]} 17... Bf8 {[%clk 0:02:26.8]} 18.
Ng5 {[%clk 0:01:58.6]} 18... g6 {[%clk 0:02:17.8]} 19. Nxf7+ {[%clk 0:01:38.3]}
19... Qxf7 {[%clk 0:02:05.6]} 20. Nxh6 {[%clk 0:01:37.9]} 20... gxh5 {[%clk
0:01:59.4]} 21. Nxf7+ {[%clk 0:01:36.7]} 21... Kg8 {[%clk 0:01:50.8]} 22. Ng5
{[%clk 0:01:35]} 22... Re8 {[%clk 0:01:50.4]} 23. Bf3 {[%clk 0:01:33.7]} 23...
Bg7 {[%clk 0:01:48.5]} 24. Bxh5 {[%clk 0:01:32.9]} 24... Re7 {[%clk 0:01:47.6]}
25. Bg4 {[%clk 0:01:18.7]} 25... Rae8 {[%clk 0:01:45.8]} 26. Bh5 {[%clk
0:01:13.5]} 26... Rf8 {[%clk 0:01:44.2]} 27. Bg4 {[%clk 0:01:13.3]} 27... Rfe8
{[%clk 0:01:11.1]} 28. Bh5 {[%clk 0:01:10.8]} 28... Rf8 {[%clk 0:01:11.1]} 29.
Bg4 {[%clk 0:01:10.7]} 29... Rfe8 {[%clk 0:01:11.4]} 1/2-1/2

[Event "*** Titled Tuesday Blitz"]
[Site "Chess.com"]
[Date "2021.03.30"]
[Round "6"]
[White "Tacticus_Severus"]
[Black "AniJak"]
[Result "0-1"]
[WhiteElo "2063"]
[BlackElo "2314"]
[TimeControl "180+1"]
[EndTime "11:04:03 PDT"]
[Termination "AniJak won by resignation"]

1. e4 {[%clk 0:03:00.9]} 1... c6 {[%clk 0:02:59.4]} 2. d4 {[%clk 0:03:00.2]}
2... d5 {[%clk 0:03:00.3]} 3. Nc3 {[%clk 0:03:00.2]} 3... dxe4 {[%clk 0:03:00]}
4. Nxe4 {[%clk 0:03:01.1]} 4... Nf6 {[%clk 0:03:00.1]} 5. Nxf6+ {[%clk
0:03:00.6]} 5... exf6 {[%clk 0:03:01]} 6. c3 {[%clk 0:03:00.7]} 6... Bd6 {[%clk
0:03:01.5]} 7. Bd3 {[%clk 0:03:01.2]} 7... O-O {[%clk 0:03:01.7]} 8. Qh5 {[%clk
0:03:01.8]} 8... g6 {[%clk 0:02:59.7]} 9. Qh4 {[%clk 0:03:01.5]} 9... Re8+
{[%clk 0:02:55.5]} 10. Ne2 {[%clk 0:03:01.4]} 10... Nd7 {[%clk 0:02:55.7]} 11.
O-O {[%clk 0:02:59.3]} 11... Nf8 {[%clk 0:02:53.6]} 12. Bf4 {[%clk 0:02:58.7]}
12... Rxe2 {[%clk 0:02:34]} 13. Bxd6 {[%clk 0:02:58]} 13... Rxb2 {[%clk
0:02:14.7]} 14. Bxf8 {[%clk 0:02:42.7]} 14... Qxf8 {[%clk 0:02:14.2]} 15. Qxf6
{[%clk 0:02:42.6]} 15... Be6 {[%clk 0:02:01]} 16. Rfb1 {[%clk 0:02:30.5]} 16...
Qa3 {[%clk 0:01:54.4]} 17. h4 {[%clk 0:02:14]} 17... Qxc3 {[%clk 0:01:51.6]} 18.
h5 {[%clk 0:02:05.6]} 18... Rxb1+ {[%clk 0:01:49.8]} 19. Rxb1 {[%clk 0:02:02.1]}
19... Qxd3 {[%clk 0:01:41.8]} 20. h6 {[%clk 0:01:44.7]} 20... Qxb1+ {[%clk
0:01:39.7]} 21. Kh2 {[%clk 0:01:44.8]} 21... Kf8 {[%clk 0:01:40.1]} 22. Qh8+
{[%clk 0:01:44.8]} 22... Ke7 {[%clk 0:01:40.2]} 23. Qxa8 {[%clk 0:01:44.9]}
23... Qb4 {[%clk 0:01:26.8]} 24. Qh8 {[%clk 0:01:39.2]} 24... Qd6+ {[%clk
0:01:20.1]} 25. Kg1 {[%clk 0:01:36.2]} 25... b5 {[%clk 0:01:01]} 26. Qxh7 {[%clk
0:01:35.9]} 26... Qxd4 {[%clk 0:01:00.2]} 27. Qg8 {[%clk 0:01:17.9]} 27... Qd1+
{[%clk 0:00:57.3]} 28. Kh2 {[%clk 0:01:15.2]} 28... Qh5+ {[%clk 0:00:57.8]} 0-1

[Event "*** Titled Tuesday Blitz"]
[Site "Chess.com"]
[Date "2021.03.30"]
[Round "6"]
[White "GMRafpig"]
[Black "Omk124"]
[Result "0-1"]
[WhiteElo "2586"]
[BlackElo "2494"]
[TimeControl "180+1"]
[EndTime "11:04:05 PDT"]
[Termination "Omk124 won by resignation"]

1. c4 {[%clk 0:03:00.9]} 1... Nf6 {[%clk 0:02:59.4]} 2. Nc3 {[%clk 0:03:00.4]}
2... g6 {[%clk 0:02:59.6]} 3. e4 {[%clk 0:02:59.8]} 3... d6 {[%clk 0:03:00]} 4.
d4 {[%clk 0:03:00]} 4... Bg7 {[%clk 0:03:00.6]} 5. Bd3 {[%clk 0:02:59.5]} 5...
O-O {[%clk 0:03:00.7]} 6. Nge2 {[%clk 0:02:59.7]} 6... e5 {[%clk 0:03:00.8]} 7.
d5 {[%clk 0:02:58.9]} 7... Na6 {[%clk 0:03:00.5]} 8. O-O {[%clk 0:02:51.1]} 8...
Nc5 {[%clk 0:03:00.3]} 9. Bc2 {[%clk 0:02:50.9]} 9... a5 {[%clk 0:03:00.6]} 10.
f3 {[%clk 0:02:49.3]} 10... Bd7 {[%clk 0:02:56.3]} 11. Be3 {[%clk 0:02:48.7]}
11... b6 {[%clk 0:02:56.4]} 12. Qd2 {[%clk 0:02:47.7]} 12... Nh5 {[%clk
0:02:54.9]} 13. Rae1 {[%clk 0:02:40.5]} 13... f5 {[%clk 0:02:54.5]} 14. exf5
{[%clk 0:02:39.5]} 14... gxf5 {[%clk 0:02:54.5]} 15. f4 {[%clk 0:02:39.9]} 15...
Qh4 {[%clk 0:02:51.7]} 16. Bf2 {[%clk 0:02:25.7]} 16... Qg4 {[%clk 0:02:47.3]}
17. h3 {[%clk 0:02:19.8]} 17... Qg6 {[%clk 0:02:47.2]} 18. Kh1 {[%clk 0:02:06]}
18... Bh6 {[%clk 0:02:46.4]} 19. Be3 {[%clk 0:02:02.6]} 19... exf4 {[%clk
0:02:37.5]} 20. Bxf4 {[%clk 0:01:39.6]} 20... Bxf4 {[%clk 0:02:35.6]} 21. Nxf4
{[%clk 0:01:35.4]} 21... Ng3+ {[%clk 0:02:35.8]} 22. Kg1 {[%clk 0:01:35]} 22...
Nxf1 {[%clk 0:02:36.7]} 23. Rxf1 {[%clk 0:01:34.6]} 23... Qh6 {[%clk 0:02:31.9]}
24. Rf3 {[%clk 0:01:32.6]} 24... Kh8 {[%clk 0:02:27.6]} 25. Rg3 {[%clk
0:01:29.8]} 25... Qf6 {[%clk 0:02:25.5]} 26. Nh5 {[%clk 0:01:27.1]} 26... Qe5
{[%clk 0:02:25.4]} 27. Qh6 {[%clk 0:01:21.2]} 27... Rf7 {[%clk 0:02:20.6]} 28.
Ne2 {[%clk 0:00:48.4]} 28... Qxe2 {[%clk 0:02:04.5]} 29. Nf6 {[%clk 0:00:47.6]}
29... Qe1+ {[%clk 0:01:52.7]} 30. Kh2 {[%clk 0:00:46.1]} 30... Qe5 {[%clk
0:01:53.6]} 0-1

[Event "*** Titled Tuesday Blitz"]
[Site "Chess.com"]
[Date "2021.03.30"]
[Round "6"]
[White "abykhovsky"]
[Black "Yurovskykh_Oleksandr"]
[Result "0-1"]
[WhiteElo "2697"]
[BlackElo "2543"]
[TimeControl "180+1"]
[EndTime "11:04:10 PDT"]
[Termination "Yurovskykh_Oleksandr won by resignation"]

1. Nf3 {[%clk 0:00:17.7]} 1... d5 {[%clk 0:02:59.7]} 2. g3 {[%clk 0:00:18.6]}
2... c6 {[%clk 0:02:59.4]} 3. Bg2 {[%clk 0:00:19.2]} 3... Bg4 {[%clk 0:03:00]}
4. O-O {[%clk 0:00:19.8]} 4... Nd7 {[%clk 0:03:00.6]} 5. d4 {[%clk 0:00:20.3]}
5... e6 {[%clk 0:03:00.8]} 6. Nbd2 {[%clk 0:00:21]} 6... Ngf6 {[%clk 0:03:01.1]}
7. Re1 {[%clk 0:00:21.6]} 7... Be7 {[%clk 0:03:01.6]} 8. e4 {[%clk 0:00:22.1]}
8... O-O {[%clk 0:03:01.9]} 9. h3 {[%clk 0:00:21.1]} 9... Bh5 {[%clk 0:03:02.2]}
10. c3 {[%clk 0:00:21.2]} 10... Bg6 {[%clk 0:03:02.6]} 11. e5 {[%clk 0:00:21.4]}
11... Ne8 {[%clk 0:02:49.4]} 12. Nb3 {[%clk 0:00:22.3]} 12... c5 {[%clk
0:02:38.8]} 13. Be3 {[%clk 0:00:21.5]} 13... c4 {[%clk 0:02:38.5]} 14. Nc1
{[%clk 0:00:20.9]} 14... Nc7 {[%clk 0:02:39.1]} 15. Ne2 {[%clk 0:00:21.4]} 15...
b5 {[%clk 0:02:37.6]} 16. Nf4 {[%clk 0:00:20.9]} 16... b4 {[%clk 0:02:38.1]} 17.
h4 {[%clk 0:00:21.1]} 17... Be4 {[%clk 0:02:36.7]} 18. Bf1 {[%clk 0:00:20.6]}
18... h6 {[%clk 0:02:34.6]} 19. Nd2 {[%clk 0:00:20.7]} 19... Bh7 {[%clk
0:02:34.8]} 20. h5 {[%clk 0:00:21.2]} 20... bxc3 {[%clk 0:02:34.9]} 21. bxc3
{[%clk 0:00:22.1]} 21... Ba3 {[%clk 0:02:34.7]} 22. Qg4 {[%clk 0:00:20.1]} 22...
Bb2 {[%clk 0:02:34.6]} 23. Nxd5 {[%clk 0:00:08.9]} 23... exd5 {[%clk 0:02:27.8]}
24. Bxh6 {[%clk 0:00:08.6]} 24... Ne6 {[%clk 0:02:28.3]} 25. Nxc4 {[%clk
0:00:08.9]} 25... dxc4 {[%clk 0:02:10.5]} 26. Bxc4 {[%clk 0:00:07.7]} 26... Kh8
{[%clk 0:02:11]} 27. Bxe6 {[%clk 0:00:07.3]} 27... gxh6 {[%clk 0:02:11.5]} 28.
Bxd7 {[%clk 0:00:07.6]} 28... Bxc3 {[%clk 0:02:06.1]} 0-1

[Event "*** Titled Tuesday Blitz"]
[Site "Chess.com"]
[Date "2021.03.30"]
[Round "6"]
[White "IsaacWiebe"]
[Black "Michaelson_11"]
[Result "1-0"]
[WhiteElo "2296"]
[BlackElo "2234"]
[TimeControl "180+1"]
[EndTime "11:04:10 PDT"]
[Termination "IsaacWiebe won on time"]

1. d4 {[%clk 0:03:00.9]} 1... Nf6 {[%clk 0:02:49.5]} 2. f4 {[%clk 0:03:00.8]}
2... g6 {[%clk 0:02:50.4]} 3. e3 {[%clk 0:03:00.5]} 3... Bg7 {[%clk 0:02:50.1]}
4. Nf3 {[%clk 0:03:00.7]} 4... d6 {[%clk 0:02:51]} 5. c3 {[%clk 0:02:56.5]} 5...
O-O {[%clk 0:02:51.9]} 6. Bd3 {[%clk 0:02:56.3]} 6... Nbd7 {[%clk 0:02:41.8]} 7.
O-O {[%clk 0:02:50.2]} 7... c5 {[%clk 0:02:36.6]} 8. e4 {[%clk 0:02:43]} 8...
Qc7 {[%clk 0:02:00.6]} 9. Qe2 {[%clk 0:02:35.3]} 9... b6 {[%clk 0:01:44.6]} 10.
Nbd2 {[%clk 0:02:31.7]} 10... Bb7 {[%clk 0:01:41.1]} 11. h3 {[%clk 0:02:16.8]}
11... e5 {[%clk 0:01:31.2]} 12. fxe5 {[%clk 0:02:14]} 12... dxe5 {[%clk
0:01:29.9]} 13. d5 {[%clk 0:02:14.6]} 13... Ne8 {[%clk 0:01:23.1]} 14. Nc4
{[%clk 0:02:06.3]} 14... b5 {[%clk 0:01:10.3]} 15. Ne3 {[%clk 0:01:59.8]} 15...
c4 {[%clk 0:01:06.8]} 16. Bc2 {[%clk 0:02:00.1]} 16... Nd6 {[%clk 0:00:49.7]}
17. Ng4 {[%clk 0:01:56.1]} 17... f5 {[%clk 0:00:30.9]} 18. Nh6+ {[%clk
0:01:53.9]} 18... Bxh6 {[%clk 0:00:23.1]} 19. Bxh6 {[%clk 0:01:53.4]} 19... Rf7
{[%clk 0:00:12]} 20. Ng5 {[%clk 0:01:53.6]} 20... Rf6 {[%clk 0:00:02.7]} 21. Ne6
{[%clk 0:01:53.6]} 21... Rxe6 {[%clk 0:00:01.6]} 22. dxe6 {[%clk 0:01:53.2]} 1-0

[Event "*** Titled Tuesday Blitz"]
[Site "Chess.com"]
[Date "2021.03.30"]
[Round "6"]
[White "Nozdrachev_Leonid"]
[Black "moro182"]
[Result "0-1"]
[WhiteElo "2539"]
[BlackElo "2728"]
[TimeControl "180+1"]
[EndTime "11:04:12 PDT"]
[Termination "moro182 won by resignation"]

1. e4 {[%clk 0:03:00.9]} 1... g6 {[%clk 0:03:00.9]} 2. d4 {[%clk 0:02:59.4]}
2... Bg7 {[%clk 0:03:01.2]} 3. Nc3 {[%clk 0:02:59.5]} 3... d6 {[%clk 0:03:01.6]}
4. Nf3 {[%clk 0:02:59]} 4... Nf6 {[%clk 0:03:01.3]} 5. Be2 {[%clk 0:02:59.1]}
5... O-O {[%clk 0:03:01.2]} 6. O-O {[%clk 0:02:59.1]} 6... a6 {[%clk 0:03:01.7]}
7. a4 {[%clk 0:02:58.2]} 7... Nc6 {[%clk 0:03:02]} 8. h3 {[%clk 0:02:56.7]} 8...
e6 {[%clk 0:03:01.4]} 9. Be3 {[%clk 0:02:53.5]} 9... b6 {[%clk 0:03:01.1]} 10.
d5 {[%clk 0:02:51.2]} 10... exd5 {[%clk 0:03:00.4]} 11. exd5 {[%clk 0:02:50.4]}
11... Ne7 {[%clk 0:02:59.3]} 12. Bg5 {[%clk 0:02:46.5]} 12... h6 {[%clk
0:02:55.4]} 13. Bh4 {[%clk 0:02:46.3]} 13... Nf5 {[%clk 0:02:53.7]} 14. Bxf6
{[%clk 0:02:41.2]} 14... Qxf6 {[%clk 0:02:51.4]} 15. Bd3 {[%clk 0:02:38.5]}
15... Bd7 {[%clk 0:02:50.4]} 16. Rb1 {[%clk 0:02:35.5]} 16... Rfe8 {[%clk
0:02:48.5]} 17. Re1 {[%clk 0:02:33.1]} 17... Rxe1+ {[%clk 0:02:46.5]} 18. Qxe1
{[%clk 0:02:34]} 18... Re8 {[%clk 0:02:42.7]} 19. Qd2 {[%clk 0:02:33.7]} 19...
Bc8 {[%clk 0:02:21.4]} 20. Re1 {[%clk 0:02:28.8]} 20... Rxe1+ {[%clk 0:02:13.1]}
21. Qxe1 {[%clk 0:02:29.7]} 21... Qe7 {[%clk 0:02:12.9]} 22. Qd2 {[%clk
0:02:16.2]} 22... Qe8 {[%clk 0:02:05.1]} 23. Kf1 {[%clk 0:02:14.4]} 23... Kf8
{[%clk 0:02:03.7]} 24. Qe2 {[%clk 0:02:07.9]} 24... Qxe2+ {[%clk 0:02:02.2]} 25.
Kxe2 {[%clk 0:02:08.8]} 25... Ne7 {[%clk 0:01:59.9]} 26. Bc4 {[%clk 0:02:05.2]}
26... Bxc3 {[%clk 0:01:49.3]} 27. bxc3 {[%clk 0:02:04.8]} 27... Bb7 {[%clk
0:01:49.7]} 28. Nd4 {[%clk 0:01:54.3]} 28... Nxd5 {[%clk 0:01:45.7]} 29. Bxd5
{[%clk 0:01:52]} 29... Bxd5 {[%clk 0:01:46.6]} 30. g3 {[%clk 0:01:49.7]} 30...
c5 {[%clk 0:01:43.6]} 31. Nb3 {[%clk 0:01:46.4]} 31... Bxb3 {[%clk 0:01:28.3]}
32. cxb3 {[%clk 0:01:47.3]} 32... d5 {[%clk 0:01:27.8]} 33. c4 {[%clk
0:01:41.3]} 33... Ke7 {[%clk 0:01:25.7]} 34. a5 {[%clk 0:01:31.4]} 34... bxa5
{[%clk 0:01:08.9]} 35. cxd5 {[%clk 0:01:32.3]} 35... Kd6 {[%clk 0:01:08.7]} 36.
Kd3 {[%clk 0:01:28.3]} 36... Kxd5 {[%clk 0:01:08.8]} 37. Kc3 {[%clk 0:01:29.2]}
37... a4 {[%clk 0:01:06.5]} 38. bxa4 {[%clk 0:01:28.2]} 38... c4 {[%clk
0:01:06.7]} 0-1

[Event "*** Titled Tuesday Blitz"]
[Site "Chess.com"]
[Date "2021.03.30"]
[Round "6"]
[White "Piotrek1979"]
[Black "mr65"]
[Result "1-0"]
[WhiteElo "2324"]
[BlackElo "2102"]
[TimeControl "180+1"]
[EndTime "11:04:13 PDT"]
[Termination "Piotrek1979 won by resignation"]

1. Nf3 {[%clk 0:02:54.8]} 1... Nf6 {[%clk 0:02:59]} 2. b3 {[%clk 0:02:53.5]}
2... g6 {[%clk 0:02:58.9]} 3. Bb2 {[%clk 0:02:52.6]} 3... Bg7 {[%clk 0:02:58.9]}
4. g3 {[%clk 0:02:29.4]} 4... O-O {[%clk 0:02:57.6]} 5. Bg2 {[%clk 0:02:22.8]}
5... d5 {[%clk 0:02:51.6]} 6. O-O {[%clk 0:02:03.1]} 6... c5 {[%clk 0:02:49.8]}
7. e3 {[%clk 0:02:00.2]} 7... Nc6 {[%clk 0:02:48.2]} 8. c4 {[%clk 0:01:54.5]}
8... d4 {[%clk 0:02:46]} 9. exd4 {[%clk 0:01:47.9]} 9... Nxd4 {[%clk 0:02:45.1]}
10. Nxd4 {[%clk 0:01:47.2]} 10... cxd4 {[%clk 0:02:44.7]} 11. Re1 {[%clk
0:01:44.4]} 11... Bf5 {[%clk 0:02:36.3]} 12. d3 {[%clk 0:01:40.1]} 12... Qd7
{[%clk 0:02:33.2]} 13. b4 {[%clk 0:01:30.5]} 13... Bg4 {[%clk 0:02:26.5]} 14.
Qb3 {[%clk 0:01:22.2]} 14... Bh3 {[%clk 0:02:19.9]} 15. Nd2 {[%clk 0:01:16.7]}
15... Bxg2 {[%clk 0:02:18.8]} 16. Kxg2 {[%clk 0:01:16.8]} 16... e6 {[%clk
0:02:10.3]} 17. b5 {[%clk 0:01:14.3]} 17... b6 {[%clk 0:02:06.2]} 18. Qd1 {[%clk
0:01:09.7]} 18... Nh5 {[%clk 0:02:04.2]} 19. Qf3 {[%clk 0:01:04.8]} 19... Rab8
{[%clk 0:02:02.5]} 20. a4 {[%clk 0:01:03.4]} 20... Qb7 {[%clk 0:02:01.7]} 21. a5
{[%clk 0:01:01.4]} 21... Qxf3+ {[%clk 0:02:00.2]} 22. Kxf3 {[%clk 0:00:56.1]}
22... Bf6 {[%clk 0:01:52.1]} 23. axb6 {[%clk 0:00:54.4]} 23... axb6 {[%clk
0:01:51]} 24. Ra6 {[%clk 0:00:53.7]} 24... Ng7 {[%clk 0:01:49.8]} 25. Ne4 {[%clk
0:00:48.7]} 25... Be5 {[%clk 0:01:47.3]} 26. Ba3 {[%clk 0:00:42.1]} 26... Rfd8
{[%clk 0:01:45.3]} 27. Be7 {[%clk 0:00:38.9]} 27... Re8 {[%clk 0:01:42.3]} 28.
Bf6 {[%clk 0:00:34.8]} 28... Nf5 {[%clk 0:01:39.7]} 29. Bxe5 {[%clk 0:00:32]}
1-0

[Event "*** Titled Tuesday Blitz"]
[Site "Chess.com"]
[Date "2021.03.30"]
[Round "6"]
[White "northridgehawk"]
[Black "ljuks68"]
[Result "0-1"]
[WhiteElo "2307"]
[BlackElo "2480"]
[TimeControl "180+1"]
[EndTime "11:04:16 PDT"]
[Termination "ljuks68 won by checkmate"]

1. e4 {[%clk 0:02:59.8]} 1... e6 {[%clk 0:02:59.6]} 2. Nc3 {[%clk 0:02:56.2]}
2... d5 {[%clk 0:02:59.4]} 3. Nf3 {[%clk 0:02:47.3]} 3... Nf6 {[%clk 0:02:58.5]}
4. e5 {[%clk 0:02:47.6]} 4... Nfd7 {[%clk 0:02:58.6]} 5. d4 {[%clk 0:02:48.5]}
5... c5 {[%clk 0:02:58.9]} 6. dxc5 {[%clk 0:02:49.4]} 6... Nc6 {[%clk
0:02:59.3]} 7. Bf4 {[%clk 0:02:49.4]} 7... Nxc5 {[%clk 0:02:57.4]} 8. Bd3 {[%clk
0:02:46.9]} 8... Be7 {[%clk 0:02:57.7]} 9. O-O {[%clk 0:02:46.9]} 9... g5 {[%clk
0:02:57.5]} 10. Bg3 {[%clk 0:02:46.7]} 10... h5 {[%clk 0:02:58]} 11. h4 {[%clk
0:02:46.9]} 11... g4 {[%clk 0:02:55.4]} 12. Ng5 {[%clk 0:02:46.7]} 12... Bxg5
{[%clk 0:02:54.7]} 13. hxg5 {[%clk 0:02:47.6]} 13... Qxg5 {[%clk 0:02:54.9]} 14.
f4 {[%clk 0:02:44.9]} 14... Qe7 {[%clk 0:02:36.6]} 15. Bf2 {[%clk 0:02:41.5]}
15... Bd7 {[%clk 0:02:27.5]} 16. Re1 {[%clk 0:02:38.5]} 16... O-O-O {[%clk
0:02:25.2]} 17. Nb5 {[%clk 0:02:36.3]} 17... Nxd3 {[%clk 0:02:21.9]} 18. cxd3
{[%clk 0:02:37.2]} 18... Kb8 {[%clk 0:02:20.9]} 19. Nd6 {[%clk 0:02:30.8]} 19...
g3 {[%clk 0:02:01.7]} 20. Bc5 {[%clk 0:02:26.4]} 20... Qh4 {[%clk 0:01:57.6]}
21. Kf1 {[%clk 0:02:26.7]} 21... Qh1+ {[%clk 0:01:55.8]} 22. Bg1 {[%clk
0:02:26.3]} 22... Nd4 {[%clk 0:01:36.5]} 23. Rc1 {[%clk 0:02:15.8]} 23... h4
{[%clk 0:01:32.4]} 24. Qd2 {[%clk 0:01:31.3]} 24... h3 {[%clk 0:01:26.3]} 25.
gxh3 {[%clk 0:01:00.2]} 25... Qf3+ {[%clk 0:01:16.3]} 26. Bf2 {[%clk 0:01:00.2]}
26... Rxh3 {[%clk 0:01:14.9]} 27. Kg1 {[%clk 0:00:50.4]} 27... Rh1# {[%clk
0:01:14.2]} 0-1